fUST/lending_fUST_20240612
["ID","MTS","AMOUNT","RATE_DAILY","PERIOD"]
[329260020,1718203854628,-500.0,0.00017534,2]
[329260022,1718203854641,-500.0,0.00017534,2]
[329260034,1718203854795,-500.0,0.00017534,2]
[329260036,1718203854807,-500.0,0.00017534,2]
[329260038,1718203854827,-500.0,0.00017534,2]
[329260040,1718203854870,-500.0,0.00017534,2]
[329260042,1718203854892,-500.0,0.00017534,4]
[329260044,1718203854915,-500.0,0.00017534,2]
[329260046,1718203854934,-356.49112168,0.00017534,2]
[329260048,1718203854948,-500.0,0.00017534,2]
[329260050,1718203854969,-617.55,0.00017534,2]
[329260052,1718203854986,-500.0,0.00017534,2]
[329260053,1718203854998,-500.0,0.00017534,2]
[329260055,1718203855009,-500.0,0.00017534,2]
[329260057,1718203855021,-534.14,0.00017534,2]
[329260059,1718203855031,-500.0,0.00017534,2]
[329260061,1718203855041,-674.04,0.00017534,2]
[329260063,1718203855052,-500.0,0.00017534,2]
[329260065,1718203855087,-716.22,0.00017534,2]
[329260067,1718203855097,-998.4,0.00017534,2]
[329260069,1718203855107,-666.12,0.00017534,2]
[329260071,1718203855118,-711.81,0.00017534,2]
[329260073,1718203855128,-500.0,0.00017534,2]
[329260075,1718203855141,-500.0,0.00017534,2]
[329260077,1718203855153,-500.0,0.00017534,2]
[329260079,1718203855163,-500.0,0.00017534,2]
[329260081,1718203855173,-4052.7,0.00017534,2]
[329260083,1718203855185,-500.0,0.00017534,2]
[329260085,1718203855196,-500.0,0.00017534,2]
[329260087,1718203855206,-643.71,0.00017534,2]
[329260089,1718203855216,-11163.62,0.00017534,2]
[329260091,1718203855228,-1140.24,0.00017534,2]
[329260093,1718203855241,-1647.71,0.00017534,2]
[329260094,1718203855252,-3364.5,0.00017534,2]
[329260096,1718203855262,-500.0,0.00017534,2]
[329260098,1718203855272,-500.0,0.00017534,2]
[329260100,1718203855282,-500.0,0.00017534,2]
[329260102,1718203855293,-1148.48,0.00017534,2]
[329260104,1718203855303,-572.78,0.00017534,2]
[329260106,1718203855314,-7840.43,0.00017534,2]
[329260108,1718203855324,-1185.47,0.00017534,2]
[329260110,1718203855335,-500.0,0.00017534,2]
[329260112,1718203855345,-500.0,0.00017534,2]
[329260114,1718203855356,-660.13,0.00017534,2]
[329260116,1718203855367,-1085.84,0.00017534,2]
[329260118,1718203855378,-500.0,0.00017534,2]
[329260120,1718203855391,-586.58,0.00017534,2]
[329260122,1718203855402,-500.0,0.00017534,2]
[329260124,1718203855412,-3463.55,0.00017534,2]
[329260126,1718203855423,-5631.63,0.00017534,2]
[329260128,1718203855441,-500.0,0.00017534,2]
[329260130,1718203855451,-1707.16,0.00017534,2]
[329260132,1718203855462,-663.9,0.00017595,2]
[329260134,1718203855472,-37607.61385209,0.00017707,2]
[329260136,1718203855482,-503.78830017,0.00017708,2]
[329260138,1718203855493,-663.9,0.00017757,2]
[329260140,1718203855504,-500.0,0.00017808,2]
[329260142,1718203855518,-500.0,0.00017808,2]
[329260144,1718203855530,-500.0,0.00017808,2]
[329260146,1718203855543,-500.0,0.00017808,2]
[329260148,1718203855553,-500.0,0.00017808,2]
[329260150,1718203855565,-500.0,0.00017808,4]
[329260152,1718203855575,-500.0,0.00017808,2]
[329260154,1718203855586,-500.0,0.00017808,2]
[329260156,1718203855597,-617.55,0.00017808,2]
[329260158,1718203855609,-500.0,0.00017808,2]
[329260160,1718203855630,-500.0,0.00017808,2]
[329260162,1718203855644,-500.0,0.00017808,2]
[329260164,1718203855656,-534.14,0.00017808,2]
[329260166,1718203855668,-500.0,0.00017808,2]
[329260168,1718203855680,-674.04,0.00017808,2]
[329260170,1718203855690,-500.0,0.00017808,2]
[329260172,1718203855701,-716.22,0.00017808,2]
[329260174,1718203855714,-998.4,0.00017808,2]
[329260176,1718203855728,-666.12,0.00017808,2]
[329260178,1718203855739,-711.81,0.00017808,2]
[329260180,1718203855749,-613.70082643,0.00017808,2]
[329260182,1718203855762,-500.0,0.00017808,2]
[329260184,1718203855773,-500.0,0.00017808,2]
[329260186,1718203855785,-500.0,0.00017808,2]
[329260188,1718203855798,-4052.7,0.00017808,2]
[329260189,1718203855809,-500.0,0.00017808,2]
[329260192,1718203855824,-500.0,0.00017808,2]
[329260193,1718203855836,-643.71,0.00017808,2]
[329260195,1718203855846,-11163.62,0.00017808,2]
[329260197,1718203855858,-1140.24,0.00017808,2]
[329260199,1718203855879,-1647.71,0.00017808,2]
[329260201,1718203855892,-3364.5,0.00017808,2]
[329260203,1718203855903,-500.0,0.00017808,2]
[329260205,1718203855914,-500.0,0.00017808,2]
[329260206,1718203855924,-500.0,0.00017808,2]
[329260208,1718203855935,-1148.48,0.00017808,2]
[329260210,1718203855945,-572.78,0.00017808,2]
[329260212,1718203855955,-7840.43,0.00017808,2]
[329260214,1718203855967,-1185.47,0.00017808,2]
[329260216,1718203855978,-500.0,0.00017808,2]
[329260218,1718203855989,-500.0,0.00017808,2]
[329260220,1718203855999,-660.13,0.00017808,2]
[329260222,1718203856009,-1085.84,0.00017808,2]
[329260224,1718203856020,-586.58,0.00017808,2]
[329260226,1718203856030,-500.0,0.00017808,2]
[329260228,1718203856042,-3463.55,0.00017808,2]
[329260230,1718203856053,-5631.63,0.00017808,2]
[329260232,1718203856080,-500.0,0.00017808,2]
[329260234,1718203856091,-1707.16,0.00017808,2]
[329260236,1718203856102,-292.5693121,0.00017808,2]
[329260238,1718203856112,-292.5693121,0.00017808,2]
[329260240,1718203856123,-292.5693121,0.00017808,2]
[329260242,1718203856133,-292.5693121,0.00017808,2]
[329260244,1718203856147,-582.4636845,0.00017808,2]
[329260246,1718203856159,-10491.92816074,0.00017898,2]
[329260248,1718203856169,-663.9,0.00017918,2]
[329260250,1718203856180,-154.98450155,0.00018,2]
[329260252,1718203856191,-2765.44251206,0.00018,2]
[329260254,1718203856202,-476.69963654,0.00018,2]
[329260256,1718203856212,-1355.61945113,0.00018,2]
[329260258,1718203856223,-876.82850055,0.00018,2]
[329260260,1718203856233,-1036.68456979,0.00018,2]
[329260262,1718203856245,-204.17791001,0.00018,2]
[329260264,1718203856255,-155.02790502,0.00018,2]
[329260266,1718203856266,-663.9,0.0001808,2]
[329260268,1718203856277,-592.54918291,0.00018082,2]
[329260270,1718203856287,-500.0,0.00018082,2]
[329260272,1718203856297,-500.0,0.00018082,2]
[329260274,1718203856308,-500.0,0.00018082,2]
[329260276,1718203856318,-500.0,0.00018082,4]
[329260277,1718203856328,-500.0,0.00018082,2]
[329260279,1718203856339,-500.0,0.00018082,2]
[329260281,1718203856349,-617.55,0.00018082,2]
[329260283,1718203856359,-500.0,0.00018082,2]
[329260285,1718203856369,-500.0,0.00018082,2]
[329260287,1718203856379,-500.0,0.00018082,2]
[329260289,1718203856391,-534.14,0.00018082,2]
[329260291,1718203856401,-500.0,0.00018082,2]
[329260293,1718203856411,-674.04,0.00018082,2]
[329260295,1718203856421,-500.0,0.00018082,2]
[329260297,1718203856432,-716.22,0.00018082,2]
[329260298,1718203856442,-998.4,0.00018082,2]
[329260299,1718203856451,-666.12,0.00018082,2]
[329260300,1718203856461,-711.81,0.00018082,2]
[329260301,1718203856471,-302.61382712,0.00018082,2]
[329260302,1718203856480,-500.0,0.00018082,2]
[329260303,1718203856490,-500.0,0.00018082,2]
[329260304,1718203856504,-4052.7,0.00018082,2]
[329260305,1718203856516,-500.0,0.00018082,2]
[329260306,1718203856526,-500.0,0.00018082,2]
[329260307,1718203856536,-643.71,0.00018082,2]
[329260308,1718203856545,-11163.62,0.00018082,2]
[329260309,1718203856555,-1140.24,0.00018082,2]
[329260310,1718203856566,-1647.71,0.00018082,2]
[329260311,1718203856575,-3364.5,0.00018082,2]
[329260312,1718203856588,-500.0,0.00018082,2]
[329260313,1718203856597,-500.0,0.00018082,2]
[329260314,1718203856607,-500.0,0.00018082,2]
[329260316,1718203856616,-1148.48,0.00018082,2]
[329260317,1718203856625,-500.0,0.00018082,2]
[329260319,1718203856635,-572.78,0.00018082,2]
[329260321,1718203856648,-7840.43,0.00018082,2]
[329260323,1718203856658,-1185.47,0.00018082,2]
[329260325,1718203856668,-500.0,0.00018082,2]
[329260327,1718203856677,-500.0,0.00018082,2]
[329260329,1718203856687,-660.13,0.00018082,2]
[329260331,1718203856696,-1085.84,0.00018082,2]
[329260333,1718203856706,-586.58,0.00018082,2]
[329260335,1718203856716,-500.0,0.00018082,2]
[329260337,1718203856728,-3463.55,0.00018082,2]
[329260339,1718203856738,-5631.63,0.00018082,2]
[329260342,1718203856749,-500.0,0.00018082,2]
[329260343,1718203856759,-1707.16,0.00018082,2]
[329260345,1718203856769,-663.9,0.00018241,2]
[329260347,1718203856780,-503.78830017,0.00018256,2]
[329260349,1718203856791,-506.98427,0.00018271,2]
[329260352,1718203856801,-498.960091,0.00018271,2]
[329260354,1718203856812,-381.584427,0.00018271,2]
[329260356,1718203856822,-260.543205,0.00018271,2]
[329260358,1718203856833,-294.428127,0.00018271,2]
[329260360,1718203856844,-171.481871,0.00018271,2]
[329260362,1718203856854,-782.322044,0.00018271,2]
[329260364,1718203856864,-473.099348,0.00018271,2]
[329260366,1718203856873,-311.108257,0.00018271,2]
[329260367,1718203856883,-332.87535,0.00018271,2]
[329260369,1718203856896,-371.838374,0.00018271,2]
[329260371,1718203856907,-311.108258,0.00018271,2]
[329260373,1718203856918,-499.0,0.00018284,2]
[329260375,1718203856928,-150.0,0.00018284,2]
[329260378,1718203856939,-1750.0,0.00018284,2]
[329260380,1718203856950,-230.801,0.00018284,2]
[329260382,1718203856961,-500.0,0.00018356,2]
[329260384,1718203856971,-500.0,0.00018356,2]
[329260386,1718203856982,-500.0,0.00018356,2]
[329260387,1718203856991,-500.0,0.00018356,4]
[329260389,1718203857001,-500.0,0.00018356,2]
[329260391,1718203857012,-500.0,0.00018356,2]
[329260393,1718203857022,-617.55,0.00018356,2]
[329260395,1718203857032,-500.0,0.00018356,2]
[329260397,1718203857043,-500.0,0.00018356,2]
[329260399,1718203857053,-500.0,0.00018356,2]
[329260401,1718203857065,-534.14,0.00018356,2]
[329260403,1718203857080,-500.0,0.00018356,2]
[329260405,1718203857090,-674.04,0.00018356,2]
[329260407,1718203857100,-500.0,0.00018356,2]
[329260409,1718203857110,-716.22,0.00018356,2]
[329260411,1718203857120,-998.4,0.00018356,2]
[329260413,1718203857129,-666.12,0.00018356,2]
[329260415,1718203857140,-711.81,0.00018356,2]
[329260417,1718203857151,-500.0,0.00018356,2]
[329260419,1718203857161,-500.0,0.00018356,2]
[329260421,1718203857171,-4052.7,0.00018356,2]
[329260422,1718203857181,-500.0,0.00018356,2]
[329260424,1718203857191,-500.0,0.00018356,2]
[329260426,1718203857202,-643.71,0.00018356,2]
[329260428,1718203857212,-11163.62,0.00018356,2]
[329260430,1718203857223,-1140.24,0.00018356,2]
[329260432,1718203857234,-1647.71,0.00018356,2]
[329260434,1718203857244,-3364.5,0.00018356,2]
[329260436,1718203857254,-500.0,0.00018356,2]
[329260438,1718203857268,-500.0,0.00018356,2]
[329260440,1718203857279,-500.0,0.00018356,2]
[329260442,1718203857289,-1148.48,0.00018356,2]
[329260444,1718203857299,-500.0,0.00018356,2]
[329260446,1718203857309,-572.78,0.00018356,2]
[329260448,1718203857320,-7840.43,0.00018356,2]
[329260450,1718203857333,-1185.47,0.00018356,2]
[329260452,1718203857344,-500.0,0.00018356,2]
[329260454,1718203857354,-500.0,0.00018356,2]
[329260456,1718203857364,-660.13,0.00018356,2]
[329260458,1718203857374,-1085.84,0.00018356,2]
[329260460,1718203857383,-586.58,0.00018356,2]
[329260462,1718203857397,-500.0,0.00018356,2]
[329260464,1718203857407,-3463.55,0.00018356,2]
[329260466,1718203857418,-5631.63,0.00018356,2]
[329260468,1718203857428,-500.0,0.00018356,2]
[329260470,1718203857438,-1707.16,0.00018356,2]
[329260472,1718203857448,-663.9,0.00018403,2]
[329260474,1718203857459,-155.0,0.0001841,2]
[329260476,1718203857470,-506.98427,0.000185,2]
[329260478,1718203857480,-498.960091,0.000185,2]
[329260480,1718203857490,-381.584427,0.000185,2]
[329260482,1718203857500,-260.543205,0.000185,2]
[329260484,1718203857510,-294.428127,0.000185,2]
[329260486,1718203857520,-473.099348,0.000185,2]
[329260488,1718203857531,-782.322044,0.000185,2]
[329260490,1718203857542,-311.108257,0.000185,2]
[329260492,1718203857553,-332.87535,0.000185,2]
[329260494,1718203857563,-371.838374,0.000185,2]
[329260496,1718203857574,-311.108258,0.000185,2]
[329260498,1718203857586,-606.91207968,0.000185,2]
[329260500,1718203857596,-663.9,0.00018564,2]
[329260502,1718203857606,-166.666666,0.00018575,2]
[329260504,1718203857617,-171.481871,0.00018576,2]
[329260506,1718203857627,-304.669299,0.000186,2]
[329260508,1718203857640,-292.5693121,0.0001863,2]
[329260510,1718203857651,-500.0,0.0001863,2]
[329260512,1718203857662,-500.0,0.0001863,2]
[329260514,1718203857672,-500.0,0.0001863,2]
[329260516,1718203857688,-500.0,0.0001863,4]
[329260518,1718203857698,-500.0,0.0001863,2]
[329260520,1718203857708,-500.0,0.0001863,2]
[329260522,1718203857719,-617.55,0.0001863,2]
[329260524,1718203857732,-500.0,0.0001863,2]
[329260526,1718203857744,-500.0,0.0001863,2]
[329260528,1718203857755,-500.0,0.0001863,2]
[329260530,1718203857766,-534.14,0.0001863,2]
[329260532,1718203857780,-500.0,0.0001863,2]
[329260534,1718203857790,-674.04,0.0001863,2]
[329260536,1718203857801,-302.97965784,0.0001863,2]
[329260538,1718203857811,-716.22,0.0001863,2]
[329260540,1718203857822,-998.4,0.0001863,2]
[329260542,1718203857833,-666.12,0.0001863,2]
[329260544,1718203857843,-711.81,0.0001863,2]
[329260546,1718203857854,-500.0,0.0001863,2]
[329260548,1718203857864,-500.0,0.0001863,2]
[329260550,1718203857875,-4052.7,0.0001863,2]
[329260552,1718203857885,-500.0,0.0001863,2]
[329260554,1718203857899,-500.0,0.0001863,2]
[329260556,1718203857909,-643.71,0.0001863,2]
[329260558,1718203857920,-11163.62,0.0001863,2]
[329260560,1718203857930,-1140.24,0.0001863,2]
[329260562,1718203857940,-1647.71,0.0001863,2]
[329260564,1718203857950,-3364.5,0.0001863,2]
[329260566,1718203857961,-500.0,0.0001863,2]
[329260568,1718203857976,-500.0,0.0001863,2]
[329260570,1718203857987,-500.0,0.0001863,2]
[329260572,1718203857999,-1148.48,0.0001863,2]
[329260575,1718203858010,-572.78,0.0001863,2]
[329260576,1718203858020,-7840.43,0.0001863,2]
[329260579,1718203858030,-1185.47,0.0001863,2]
[329260580,1718203858041,-500.0,0.0001863,2]
[329260582,1718203858052,-500.0,0.0001863,2]
[329260585,1718203858083,-660.13,0.0001863,2]
[329260586,1718203858099,-1085.84,0.0001863,2]
[329260588,1718203858111,-586.58,0.0001863,2]
[329260590,1718203858123,-500.0,0.0001863,2]
[329260592,1718203858134,-3463.55,0.0001863,2]
[329260595,1718203858151,-5631.63,0.0001863,2]
[329260597,1718203858163,-500.0,0.0001863,2]
[329260599,1718203858174,-1707.16,0.0001863,2]
[329260601,1718203858186,-250.0,0.0001863,2]
[329260602,1718203858198,-579.7694371,0.00018643,2]
[329260604,1718203858208,-292.5693121,0.00018643,2]
[329260606,1718203858219,-292.5693121,0.00018643,2]
[329260608,1718203858231,-292.5693121,0.00018643,2]
[329260610,1718203858243,-292.5693121,0.00018643,2]
[329260612,1718203858255,-587.0,0.0001865,2]
[329260614,1718203858265,-600.0,0.00018653,2]
[329260616,1718203858279,-663.9,0.00018726,2]
[329260618,1718203858289,-498.960091,0.00018728,2]
[329260620,1718203858300,-506.98427,0.00018728,2]
[329260622,1718203858312,-381.584427,0.00018728,2]
[329260624,1718203858324,-260.543205,0.00018728,2]
[329260627,1718203858335,-294.428127,0.00018728,2]
[329260628,1718203858345,-473.099348,0.00018728,2]
[329260631,1718203858356,-782.322044,0.00018728,2]
[329260632,1718203858366,-311.108257,0.00018728,2]
[329260635,1718203858379,-332.87535,0.00018728,2]
[329260636,1718203858390,-371.838374,0.00018728,2]
[329260638,1718203858401,-311.108258,0.00018728,2]
[329260640,1718203858411,-503.78830017,0.00018804,2]
[329260642,1718203858422,-600.0,0.00018847,2]
[329260644,1718203858432,-171.481871,0.0001888,2]
[329260646,1718203858444,-663.9,0.00018887,2]
[329260648,1718203858455,-9836.75188984,0.000189,2]
[329260650,1718203858465,-1067.85227719,0.00018902,2]
[329260652,1718203858475,-235.49923282,0.00018902,2]
[329260654,1718203858485,-207.17413057,0.00018902,2]
[329260656,1718203858496,-500.0,0.00018904,2]
[329260658,1718203858507,-500.0,0.00018904,2]
[329260660,1718203858517,-500.0,0.00018904,2]
[329260662,1718203858528,-500.0,0.00018904,4]
[329260664,1718203858538,-353.17325314,0.00018904,2]
[329260666,1718203858548,-500.0,0.00018904,2]
[329260668,1718203858559,-617.55,0.00018904,2]
[329260670,1718203858571,-500.0,0.00018904,2]
[329260672,1718203858581,-500.0,0.00018904,2]
[329260674,1718203858594,-500.0,0.00018904,2]
[329260676,1718203858605,-534.14,0.00018904,2]
[329260678,1718203858616,-500.0,0.00018904,2]
[329260680,1718203858628,-674.04,0.00018904,2]
[329260682,1718203858643,-716.22,0.00018904,2]
[329260684,1718203858655,-998.4,0.00018904,2]
[329260686,1718203858666,-666.12,0.00018904,2]
[329260688,1718203858680,-711.81,0.00018904,2]
[329260690,1718203858692,-500.0,0.00018904,2]
[329260692,1718203858703,-500.0,0.00018904,2]
[329260694,1718203858713,-4052.7,0.00018904,2]
[329260696,1718203858728,-500.0,0.00018904,2]
[329260698,1718203858749,-500.0,0.00018904,2]
[329260700,1718203858760,-643.71,0.00018904,2]
[329260702,1718203858771,-11163.62,0.00018904,2]
[329260704,1718203858781,-1140.24,0.00018904,2]
[329260706,1718203858792,-1647.71,0.00018904,2]
[329260708,1718203858802,-3364.5,0.00018904,2]
[329260710,1718203858813,-500.0,0.00018904,2]
[329260712,1718203858824,-500.0,0.00018904,2]
[329260714,1718203858837,-500.0,0.00018904,2]
[329260716,1718203858847,-1148.48,0.00018904,2]
[329260718,1718203858857,-572.78,0.00018904,2]
[329260720,1718203858868,-7840.43,0.00018904,2]
[329260722,1718203858878,-1185.47,0.00018904,2]
[329260724,1718203858891,-500.0,0.00018904,2]
[329260726,1718203858902,-500.0,0.00018904,2]
[329260738,1718203858912,-660.13,0.00018904,2]
[329260740,1718203859047,-1085.84,0.00018904,2]
[329260742,1718203859061,-586.58,0.00018904,2]
[329260745,1718203859091,-500.0,0.00018904,2]
[329260747,1718203859106,-3463.55,0.00018904,2]
[329260749,1718203859119,-5631.63,0.00018904,2]
[329260751,1718203859131,-500.0,0.00018904,2]
[329260753,1718203859144,-1707.16,0.00018904,2]
[329260755,1718203859156,-498.960091,0.00018956,2]
[329260757,1718203859168,-506.98427,0.00018956,2]
[329260760,1718203859178,-381.584427,0.00018956,2]
[329260762,1718203859192,-260.543205,0.00018956,2]
[329260763,1718203859204,-294.428127,0.00018956,2]
[329260766,1718203859234,-473.099348,0.00018956,2]
[329260768,1718203859262,-782.322044,0.00018956,2]
[329260771,1718203859310,-311.108257,0.00018956,2]
[329260773,1718203859327,-332.87535,0.00018956,2]
[329260775,1718203859341,-371.838374,0.00018956,2]
[329260777,1718203859354,-311.108258,0.00018956,2]
[329260779,1718203859366,-777.89782886,0.00018987,2]
[329260780,1718203859378,-163.14541634,0.00019,2]
[329260781,1718203859393,-180.0,0.00019,2]
[329260782,1718203859404,-7270.73643792,0.00019,2]
[329260784,1718203859414,-1000.0,0.00019,5]
[329260786,1718203859427,-600.0,0.00019041,2]
[329260788,1718203859439,-5281.92082876,0.00019049,2]
[329260790,1718203859451,-663.9,0.00019049,2]
[329260792,1718203859462,-160.0,0.00019141,2]
[329260794,1718203859472,-11305.54504539,0.00019176,2]
[329260796,1718203859483,-500.0,0.00019178,2]
[329260798,1718203859494,-500.0,0.00019178,2]
[329260800,1718203859506,-500.0,0.00019178,2]
[329260801,1718203859516,-500.0,0.00019178,2]
[329260803,1718203859527,-500.0,0.00019178,2]
[329260804,1718203859537,-392.83937806,0.00019178,2]
[329260806,1718203859551,-500.0,0.00019178,2]
[329260808,1718203859565,-500.0,0.00019178,2]
[329260810,1718203859580,-500.0,0.00019178,2]
[329260812,1718203859591,-500.0,0.00019178,2]
[329260813,1718203859604,-500.0,0.00019178,2]
[329260816,1718203859623,-500.0,0.00019178,2]
[329260818,1718203859637,-500.0,0.00019178,2]
[329260820,1718203859658,-500.0,0.00019178,2]
[329260822,1718203859672,-500.0,0.00019178,2]
[329260824,1718203859690,-638.64786224,0.00019178,2]
[329260826,1718203859717,-500.0,0.00019178,2]
[329260828,1718203859728,-500.0,0.00019178,2]
[329260830,1718203859739,-365.87107359,0.00019178,2]
[329260833,1718203859768,-500.0,0.00019178,2]
[329260836,1718203859782,-401.27237271,0.00019178,2]
[329260838,1718203859793,-500.0,0.00019178,2]
[329260840,1718203859804,-500.0,0.00019178,2]
[329260842,1718203859817,-500.0,0.00019178,2]
[329260844,1718203859829,-500.0,0.00019178,2]
[329260846,1718203859841,-500.0,0.00019178,2]
[329260848,1718203859853,-500.0,0.00019178,2]
[329260850,1718203859866,-500.0,0.00019178,2]
[329260852,1718203859880,-500.0,0.00019178,2]
[329260854,1718203859893,-500.0,0.00019178,2]
[329260856,1718203859904,-500.0,0.00019178,2]
[329260858,1718203859916,-500.0,0.00019178,2]
[329260860,1718203859928,-500.0,0.00019178,2]
[329260863,1718203859943,-500.0,0.00019178,2]
[329260865,1718203859955,-500.0,0.00019178,2]
[329260867,1718203859971,-500.0,0.00019178,2]
[329260869,1718203859982,-500.0,0.00019178,2]
[329260871,1718203859994,-500.0,0.00019178,2]
[329260873,1718203860024,-500.0,0.00019178,2]
[329260875,1718203860039,-500.0,0.00019178,2]
[329260877,1718203860088,-500.0,0.00019178,2]
[329260879,1718203860100,-500.0,0.00019178,2]
[329260881,1718203860128,-500.0,0.00019178,2]
[329260884,1718203860146,-500.0,0.00019178,2]
[329260886,1718203860160,-500.0,0.00019178,2]
[329260887,1718203860176,-500.0,0.00019178,2]
[329260889,1718203860189,-500.0,0.00019178,2]
[329260891,1718203860202,-500.0,0.00019178,2]
[329260893,1718203860214,-500.0,0.00019178,2]
[329260896,1718203860233,-500.0,0.00019178,2]
[329260898,1718203860248,-525.894128,0.00019178,2]
[329260900,1718203860274,-500.0,0.00019178,2]
[329260901,1718203860298,-500.0,0.00019178,2]
[329260902,1718203860313,-233.16573574,0.00019178,2]
[329260903,1718203860335,-500.0,0.00019178,2]
[329260905,1718203860346,-500.0,0.00019178,2]
[329260907,1718203860359,-500.0,0.00019178,2]
[329260908,1718203860377,-500.0,0.00019178,2]
[329260910,1718203860390,-500.0,0.00019178,2]
[329260912,1718203860403,-500.0,0.00019178,2]
[329260913,1718203860422,-500.0,0.00019178,2]
[329260915,1718203860434,-500.0,0.00019178,2]
[329260916,1718203860446,-500.0,0.00019178,2]
[329260919,1718203860476,-500.0,0.00019178,2]
[329260922,1718203860488,-745.58679815,0.00019178,2]
[329260924,1718203860514,-745.58679815,0.00019178,2]
[329260927,1718203860540,-745.58679815,0.00019178,2]
[329260928,1718203860565,-745.58679815,0.00019178,2]
[329260930,1718203860578,-745.58679815,0.00019178,2]
[329260932,1718203860592,-745.58679815,0.00019178,2]
[329260935,1718203860619,-745.58679815,0.00019178,2]
[329260936,1718203860631,-479.87698982,0.00019178,2]
[329260938,1718203860644,-745.58679815,0.00019178,2]
[329260940,1718203860672,-745.58679815,0.00019178,2]
[329260942,1718203860689,-745.58679815,0.00019178,2]
[329260945,1718203860714,-745.58679815,0.00019178,2]
[329260947,1718203860728,-745.58679815,0.00019178,2]
[329260949,1718203860760,-745.58679815,0.00019178,2]
[329260951,1718203860785,-745.58679815,0.00019178,2]
[329260953,1718203860815,-745.58679815,0.00019178,2]
[329260955,1718203860848,-745.58679815,0.00019178,2]
[329260957,1718203860863,-745.58679815,0.00019178,2]
[329260959,1718203860900,-745.58679815,0.00019178,2]
[329260961,1718203860944,-745.58679815,0.00019178,2]
[329260963,1718203860958,-745.58679815,0.00019178,2]
[329260965,1718203860972,-745.58679815,0.00019178,2]
[329260967,1718203860984,-1683.02332527,0.00019178,2]
[329260969,1718203860998,-745.58679815,0.00019178,2]
[329260972,1718203861017,-1683.02332527,0.00019178,2]
[329260974,1718203861034,-745.58679815,0.00019178,2]
[329260975,1718203861052,-745.58679815,0.00019178,2]
[329260978,1718203861110,-1683.02332527,0.00019178,2]
[329260980,1718203861122,-745.58679815,0.00019178,2]
[329260982,1718203861135,-1683.02332527,0.00019178,2]
[329260984,1718203861149,-745.58679815,0.00019178,2]
[329260985,1718203861164,-1683.02332527,0.00019178,2]
[329260987,1718203861175,-745.58679815,0.00019178,2]
[329260989,1718203861186,-1683.02332527,0.00019178,2]
[329260991,1718203861208,-745.58679815,0.00019178,2]
[329260993,1718203861244,-1683.02332527,0.00019178,2]
[329260996,1718203861267,-745.58679815,0.00019178,2]
[329260998,1718203861289,-1683.02332527,0.00019178,2]
[329261000,1718203861317,-1683.02332527,0.00019178,2]
[329261002,1718203861332,-745.58679815,0.00019178,2]
[329261004,1718203861344,-1683.02332527,0.00019178,2]
[329261006,1718203861360,-1683.02332527,0.00019178,2]
[329261007,1718203861374,-1683.02332527,0.00019178,2]
[329261009,1718203861386,-1683.02332527,0.00019178,2]
[329261012,1718203861404,-745.58679815,0.00019178,2]
[329261014,1718203861417,-1683.02332527,0.00019178,2]